fUST/lending_fUST_20250202
["ID","MTS","AMOUNT","RATE_DAILY","PERIOD"]
[351249042,1738477841060,-1978.58,0.0001726,2]
[351249043,1738477841069,-853.54,0.0001726,2]
[351249044,1738477841079,-774.85,0.0001726,2]
[351249045,1738477841088,-5501.71,0.0001726,2]
[351249046,1738477841098,-2620.05,0.0001726,2]
[351249047,1738477841109,-500.0,0.0001726,2]
[351249048,1738477841120,-572.9,0.0001726,2]
[351249049,1738477841129,-500.0,0.0001726,2]
[351249050,1738477841139,-500.0,0.0001726,2]
[351249051,1738477841148,-500.0,0.0001726,2]
[351249052,1738477841158,-500.0,0.0001726,2]
[351249053,1738477841167,-624.24,0.0001726,2]
[351249054,1738477841177,-575.28,0.0001726,2]
[351249055,1738477841187,-151.10576729,0.000173,2]
[351249056,1738477841196,-500.0,0.00017397,2]
[351249057,1738477841205,-455.37644197,0.00017397,2]
[351249058,1738477841215,-500.0,0.00017397,2]
[351249059,1738477841224,-7947.46,0.00017397,2]
[351249060,1738477841233,-500.0,0.00017397,2]
[351249061,1738477841243,-500.0,0.00017397,2]
[351249062,1738477841252,-2042.0,0.00017397,2]
[351249063,1738477841261,-500.0,0.00017397,2]
[351249064,1738477841270,-1017.59,0.00017397,2]
[351249065,1738477841280,-552.66,0.00017397,2]
[351249066,1738477841289,-500.0,0.00017397,2]
[351249067,1738477841299,-1034.63,0.00017397,2]
[351249068,1738477841308,-500.0,0.00017397,2]
[351249069,1738477841318,-1978.58,0.00017397,2]
[351249070,1738477841327,-853.54,0.00017397,2]
[351249071,1738477841336,-774.85,0.00017397,2]
[351249072,1738477841346,-5501.71,0.00017397,2]
[351249073,1738477841358,-2620.05,0.00017397,2]
[351249074,1738477841367,-500.0,0.00017397,2]
[351249075,1738477841377,-572.9,0.00017397,2]
[351249076,1738477841387,-500.0,0.00017397,2]
[351249077,1738477841396,-500.0,0.00017397,2]
[351249078,1738477841406,-614.85,0.00017397,2]
[351249079,1738477841415,-618.27,0.00017397,2]
[351249080,1738477841424,-624.24,0.00017397,2]
[351249081,1738477841434,-575.28,0.00017397,2]
[351249082,1738477841443,-500.0,0.00017534,2]
[351249083,1738477841452,-500.0,0.00017534,2]
[351249084,1738477841462,-7947.46,0.00017534,2]
[351249085,1738477841475,-500.0,0.00017534,2]
[351249086,1738477841484,-500.0,0.00017534,2]
[351249087,1738477841493,-2042.0,0.00017534,2]
[351249088,1738477841503,-500.0,0.00017534,2]
[351249089,1738477841516,-1017.59,0.00017534,2]
[351249090,1738477841525,-552.66,0.00017534,2]
[351249091,1738477841535,-500.0,0.00017534,2]
[351249092,1738477841545,-1034.63,0.00017534,2]
[351249093,1738477841557,-500.0,0.00017534,2]
[351249094,1738477841567,-1978.58,0.00017534,2]
[351249095,1738477841576,-853.54,0.00017534,2]
[351249096,1738477841586,-774.85,0.00017534,2]
[351249097,1738477841596,-5501.71,0.00017534,2]
[351249098,1738477841607,-2620.05,0.00017534,2]
[351249099,1738477841616,-500.0,0.00017534,2]
[351249100,1738477841625,-572.9,0.00017534,2]
[351249101,1738477841634,-616.5742839,0.00017534,2]
[351249102,1738477841643,-500.0,0.00017534,2]
[351249103,1738477841653,-624.24,0.00017534,2]
[351249104,1738477841663,-575.28,0.00017534,2]
[351249105,1738477841672,-157.4855484,0.00017553,2]
[351249106,1738477841681,-13255.3373504,0.00017585,2]
[351249107,1738477841691,-582.47739232,0.00017669,2]
[351249108,1738477841700,-500.0,0.00017671,2]
[351249109,1738477841709,-500.0,0.00017671,2]
[351249110,1738477841718,-7947.46,0.00017671,2]
[351249111,1738477841728,-500.0,0.00017671,2]
[351249112,1738477841737,-500.0,0.00017671,2]
[351249113,1738477841746,-2042.0,0.00017671,2]
[351249114,1738477841755,-500.0,0.00017671,2]
[351249115,1738477841765,-1017.59,0.00017671,2]
[351249116,1738477841774,-552.66,0.00017671,2]
[351249117,1738477841783,-500.0,0.00017671,2]
[351249118,1738477841793,-1034.63,0.00017671,2]
[351249119,1738477841803,-500.0,0.00017671,2]
[351249120,1738477841812,-1861.20737088,0.00017671,2]
[351249136,1738477843596,-1324.57,0.00016438,2]
[351249137,1738477843608,-1268.95,0.00016575,2]
[351249138,1738477843617,-1324.57,0.00016575,2]
[351249139,1738477843626,-1268.95,0.00016712,2]
[351249140,1738477843635,-1324.57,0.00016712,2]
[351249141,1738477843645,-1268.95,0.00016849,2]
[351249143,1738477843655,-1324.57,0.00016849,2]
[351249145,1738477843665,-1268.95,0.00016986,2]
[351249147,1738477843675,-1324.57,0.00016986,2]
[351249148,1738477843684,-1268.95,0.00017123,2]
[351249149,1738477843693,-1324.57,0.00017123,2]
[351249150,1738477843703,-1268.95,0.0001726,2]
[351249151,1738477843713,-1324.57,0.0001726,2]
[351249152,1738477843722,-1268.95,0.00017397,2]
[351249153,1738477843731,-1324.57,0.00017397,2]
[351249154,1738477843741,-1268.95,0.00017534,2]
[351249155,1738477843750,-1324.57,0.00017534,2]
[351249156,1738477843759,-396.0,0.00017646,2]
[351249157,1738477843769,-117.37262912,0.00017671,2]
[351249158,1738477843779,-853.54,0.00017671,2]
[351249159,1738477843788,-774.85,0.00017671,2]
[351249160,1738477843798,-5501.71,0.00017671,2]
[351249161,1738477843807,-2620.05,0.00017671,2]
[351249162,1738477843816,-500.0,0.00017671,2]
[351249163,1738477843826,-572.9,0.00017671,2]
[351249164,1738477843835,-500.0,0.00017671,2]
[351249165,1738477843844,-624.24,0.00017671,2]
[351249166,1738477843854,-575.28,0.00017671,2]
[351249167,1738477843864,-1268.95,0.00017671,2]
[351249168,1738477843874,-1324.57,0.00017671,2]
[351249169,1738477843883,-500.0,0.00017808,2]
[351249170,1738477843893,-500.0,0.00017808,2]
[351249171,1738477843903,-500.0,0.00017808,2]
[351249172,1738477843912,-500.0,0.00017808,2]
[351249173,1738477843921,-2042.0,0.00017808,2]
[351249174,1738477843931,-500.0,0.00017808,2]
[351249175,1738477843940,-1017.59,0.00017808,2]
[351249176,1738477843950,-552.66,0.00017808,2]
[351249177,1738477843959,-500.0,0.00017808,2]
[351249178,1738477843969,-1034.63,0.00017808,2]
[351249179,1738477843978,-500.0,0.00017808,2]
[351249180,1738477843988,-1978.58,0.00017808,2]
[351249181,1738477843997,-853.54,0.00017808,2]
[351249182,1738477844006,-774.85,0.00017808,2]
[351249183,1738477844015,-5501.71,0.00017808,2]
[351249184,1738477844024,-2620.05,0.00017808,2]
[351249185,1738477844033,-500.0,0.00017808,2]
[351249186,1738477844042,-572.9,0.00017808,2]
[351249187,1738477844051,-500.0,0.00017808,2]
[351249188,1738477844063,-624.24,0.00017808,2]
[351249189,1738477844073,-575.28,0.00017808,2]
[351249190,1738477844083,-1268.95,0.00017808,2]
[351249191,1738477844093,-1324.57,0.00017808,2]
[351249192,1738477844102,-326.5946166,0.00017817,2]
[351249193,1738477844115,-213.71543271,0.000179,2]
[351249194,1738477844125,-157.4855484,0.000179,2]
[351249195,1738477844136,-359.159184,0.00017945,2]
[351249196,1738477844145,-359.159184,0.00017945,2]
[351249197,1738477844156,-537.78858279,0.00017945,2]
[351249198,1738477844166,-500.0,0.00017945,2]
[351249199,1738477844176,-500.0,0.00017945,2]
[351249200,1738477844186,-500.0,0.00017945,2]
[351249201,1738477844198,-2042.0,0.00017945,2]
[351249202,1738477844208,-500.0,0.00017945,2]
[351249203,1738477844219,-1017.59,0.00017945,2]
[351249204,1738477844229,-552.66,0.00017945,2]
[351249205,1738477844239,-500.0,0.00017945,2]
[351249206,1738477844248,-1034.63,0.00017945,2]
[351249207,1738477844258,-623.99898966,0.00017945,2]
[351249208,1738477844268,-1978.58,0.00017945,2]
[351249209,1738477844277,-853.54,0.00017945,2]
[351249210,1738477844287,-774.85,0.00017945,2]
[351249211,1738477844297,-5501.71,0.00017945,2]
[351249212,1738477844307,-2620.05,0.00017945,2]
[351249213,1738477844317,-500.0,0.00017945,2]
[351249214,1738477844327,-572.9,0.00017945,2]
[351249215,1738477844336,-500.0,0.00017945,2]
[351249216,1738477844346,-624.24,0.00017945,2]
[351249217,1738477844359,-575.28,0.00017945,2]
[351249218,1738477844368,-1268.95,0.00017945,2]
[351249219,1738477844378,-1324.57,0.00017945,2]
[351249220,1738477844388,-420.0,0.00017963,2]
[351249221,1738477844397,-500.96871249,0.00017973,2]
[351249222,1738477844407,-507.19171038,0.00017973,2]
[351249223,1738477844416,-500.0,0.00017973,2]
[351249224,1738477844426,-301.86953056,0.00017996,2]
[351249225,1738477844435,-415.7506893,0.00017998,5]
[351249226,1738477844451,-190.43298953,0.00017998,5]
[351249227,1738477844460,-21813.36275327,0.00017998,7]
[351249228,1738477844475,-70265.65169755,0.00017998,7]
[351249235,1738477846491,-624.7826615,0.00017998,7]
[351249236,1738477846582,-7807.98683932,0.00017998,7]
[351249238,1738478323511,171.54262,0.00013973,2]
[351249239,1738478538139,200.0,0.0002,120]
[351249241,1738478628669,4038.37246774,0.00015011,2]
[351249242,1738478811149,300.0,0.00015011,2]
[351249243,1738478830131,-300.0,0.00015337,2]
[351249244,1738478830154,-4435.43442468,0.00015338,2]
[351249245,1738478916926,751.21,0.00010959,2]
[351249246,1738478937629,173.89,0.00010959,2]
[351249247,1738478948113,228.74,0.00010959,2]
[351249248,1738478958899,190.61,0.00010959,2]
[351249249,1738478965105,-300.0,0.00015337,2]
[351249250,1738478965129,-20464.56557532,0.00015338,2]
[351249251,1738478965153,-500.0,0.00015999,2]
[351249252,1738478965175,-500.0,0.00015999,2]
[351249253,1738478965196,-500.0,0.00015999,2]
[351249254,1738478965218,-461.96257009,0.00015999,2]
[351249255,1738478965241,-500.0,0.00015999,2]
[351249256,1738478965263,-500.0,0.00015999,2]
[351249257,1738478965285,-500.0,0.00015999,2]
[351249258,1738478965308,-500.0,0.00015999,2]
[351249259,1738478965331,-500.0,0.00015999,2]
[351249260,1738478965353,-500.0,0.00015999,2]
[351249261,1738478965376,-436.04166785,0.00015999,2]
[351249262,1738478965400,-500.0,0.00015999,2]
[351249263,1738478965422,-485.21339683,0.00015999,2]
[351249264,1738478965445,-5047.12134444,0.00016,2]
[351249268,1738478969384,704.9,0.00010959,2]
[351249269,1738478990328,306.39,0.00010959,2]
[351249270,1738479000820,394.9,0.00010959,2]
[351249271,1738479011299,385.23,0.00010959,2]
[351249274,1738479032212,674.34,0.00010959,2]
[351249308,1738479032913,-300.0,0.00015999,2]
[351249309,1738479032924,-1192.87488739,0.00016,2]
[351249310,1738479033051,-30095.70749443,0.00016,2]
[351249311,1738479033066,-568.42067527,0.00016,2]
[351249312,1738479033078,-300.0,0.00016,2]
[351249313,1738479033100,-77776.08239568,0.00016,2]
[351249314,1738479033110,-170.31967601,0.00016337,2]
[351249315,1738479033120,-501.78949727,0.00016438,2]
[351249316,1738479033129,-500.0,0.00016438,2]
[351249317,1738479033139,-500.0,0.00016438,2]
[351249318,1738479033149,-500.0,0.00016438,2]
[351249319,1738479033158,-501.49813326,0.00016438,2]
[351249320,1738479033168,-498.55747848,0.00016438,2]
[351249321,1738479033179,-500.0,0.00016438,2]
[351249322,1738479033189,-502.16596267,0.00016438,2]
[351249323,1738479033199,-500.92596504,0.00016438,2]
[351249324,1738479033209,-504.60814256,0.00016438,2]
[351249325,1738479033219,-185.88923637,0.00016438,2]
[351249326,1738479033228,-502.13956518,0.00016438,2]
[351249327,1738479033238,-502.06115836,0.00016438,2]
[351249328,1738479033247,-503.46709409,0.00016438,2]
[351249329,1738479033257,-500.0,0.00016438,2]
[351249330,1738479033267,-502.402042,0.00016438,2]
[351249331,1738479033276,-502.22071788,0.00016438,2]
[351249332,1738479033285,-500.0,0.00016438,2]
[351249333,1738479033295,-501.30508629,0.00016438,2]
[351249334,1738479033304,-497.91336132,0.00016438,2]
[351249335,1738479033314,-500.0,0.00016438,2]
[351249336,1738479033323,-500.0,0.00016438,2]
[351249337,1738479033333,-500.0,0.00016438,2]
[351249338,1738479033343,-500.0,0.00016438,2]
[351249339,1738479033354,-501.32519934,0.00016438,2]
[351249340,1738479033364,-500.0,0.00016438,2]
[351249341,1738479033374,-500.0,0.00016438,2]
[351249342,1738479033383,-208.57806212,0.00016438,2]
[351249343,1738479033393,-500.0,0.00016438,2]
[351249344,1738479033403,-500.0,0.00016438,2]
[351249345,1738479033412,-500.0,0.00016438,2]
[351249346,1738479033421,-500.0,0.00016438,2]
[351249347,1738479033432,-500.0,0.00016438,2]
[351249348,1738479033441,-500.0,0.00016438,2]
[351249349,1738479033450,-500.0,0.00016438,2]
[351249350,1738479033460,-500.0,0.00016438,2]
[351249351,1738479033469,-401.42517882,0.00016438,2]
[351249352,1738479033478,-505.13236114,0.00016438,2]
[351249353,1738479033488,-507.52712691,0.00016438,2]
[351249354,1738479033497,-506.64041338,0.00016438,2]
[351249355,1738479033507,-500.0,0.00016438,2]
[351249356,1738479033517,-500.0,0.00016438,2]
[351249357,1738479033526,-500.0,0.00016438,2]
[351249358,1738479033536,-504.56176528,0.00016438,2]
[351249359,1738479033546,-500.0,0.00016438,2]
[351249360,1738479033557,-500.0,0.00016438,2]
[351249361,1738479033567,-636.88779397,0.00016438,2]
[351249362,1738479033577,-500.0,0.00016438,2]
[351249363,1738479033587,-500.0,0.00016438,2]
[351249364,1738479033596,-500.0,0.00016438,2]
[351249365,1738479033606,-500.0,0.00016438,2]
[351249366,1738479033616,-500.0,0.00016438,2]
[351249367,1738479033626,-500.0,0.00016438,2]
[351249368,1738479033635,-500.0,0.00016438,2]
[351249369,1738479033645,-500.0,0.00016438,2]
[351249370,1738479033654,-504.03436663,0.00016438,2]
[351249371,1738479033664,-478.76657758,0.00016438,2]
[351249372,1738479033674,-500.0,0.00016438,2]
[351249373,1738479033684,-500.0,0.00016438,2]
[351249374,1738479033694,-500.0,0.00016438,2]
[351249375,1738479033703,-500.0,0.00016438,2]
[351249376,1738479033712,-500.0,0.00016438,2]
[351249377,1738479033722,-500.0,0.00016438,2]
[351249378,1738479033733,-500.0,0.00016438,2]
[351249379,1738479033742,-500.0,0.00016438,2]
[351249380,1738479033752,-426.77811616,0.00016438,2]
[351249381,1738479033761,-500.0,0.00016438,2]
[351249382,1738479033770,-500.0,0.00016438,2]
[351249383,1738479033780,-500.0,0.00016438,2]
[351249384,1738479033790,-500.0,0.00016438,2]
[351249385,1738479033800,-393.35131696,0.00016438,2]
[351249386,1738479033810,-500.0,0.00016438,2]
[351249387,1738479033820,-500.0,0.00016438,2]
[351249388,1738479033831,-500.0,0.00016438,2]
[351249389,1738479033840,-500.0,0.00016438,2]
[351249390,1738479033850,-500.0,0.00016438,2]
[351249391,1738479033860,-515.88334991,0.00016438,2]
[351249392,1738479033870,-500.0,0.00016438,2]
[351249393,1738479033883,-500.0,0.00016438,2]
[351249394,1738479033893,-500.0,0.00016438,2]
[351249395,1738479033903,-500.0,0.00016438,2]
[351249396,1738479033913,-500.0,0.00016438,2]
[351249397,1738479033923,-500.0,0.00016438,2]
[351249398,1738479033933,-500.0,0.00016438,2]
[351249399,1738479033943,-500.0,0.00016438,2]
[351249400,1738479033954,-500.0,0.00016438,2]
[351249401,1738479033964,-500.0,0.00016438,2]
[351249402,1738479033974,-507.88828999,0.00016438,2]
[351249403,1738479033984,-448.01501575,0.00016438,2]
[351249404,1738479033994,-500.0,0.00016438,2]
[351249405,1738479034004,-500.0,0.00016438,2]
[351249406,1738479034013,-500.0,0.00016438,2]
[351249407,1738479034022,-500.0,0.00016438,2]
[351249408,1738479034032,-500.0,0.00016438,2]
[351249409,1738479034041,-500.0,0.00016438,2]
[351249410,1738479034050,-460.24324787,0.00016438,2]
[351249411,1738479034060,-413.80422357,0.00016438,2]
[351249412,1738479034069,-500.0,0.00016438,2]
[351249413,1738479034078,-500.0,0.00016438,2]
[351249414,1738479034088,-500.0,0.00016438,2]
[351249415,1738479034097,-500.0,0.00016438,2]
[351249416,1738479034107,-500.0,0.00016438,2]
[351249417,1738479034116,-500.0,0.00016438,2]
[351249418,1738479034126,-229.28703028,0.00016438,2]
[351249419,1738479034135,-500.0,0.00016438,2]
[351249420,1738479034145,-500.0,0.00016438,2]
[351249421,1738479034155,-500.0,0.00016438,2]
[351249422,1738479034165,-500.0,0.00016438,2]
[351249423,1738479034174,-500.0,0.00016438,2]
[351249424,1738479034184,-500.0,0.00016438,2]
[351249425,1738479034194,-500.0,0.00016438,2]
[351249426,1738479034203,-501.6713087,0.00016438,2]
[351249427,1738479034213,-500.0,0.00016438,2]
[351249428,1738479034222,-500.0,0.00016438,2]
[351249429,1738479034232,-500.0,0.00016438,2]
[351249430,1738479034242,-500.0,0.00016438,2]
[351249431,1738479034252,-500.0,0.00016438,2]
[351249432,1738479034262,-500.0,0.00016438,2]
[351249433,1738479034272,-500.94174559,0.00016438,2]
[351249434,1738479034282,-1062.97,0.00016438,2]
[351249435,1738479034292,-500.0,0.00016438,2]
[351249436,1738479034303,-500.0,0.00016438,2]
[351249437,1738479034312,-500.0,0.00016438,2]
[351249438,1738479034323,-500.0,0.00016438,2]
[351249439,1738479034332,-546.04,0.00016438,2]
[351249440,1738479034342,-513.83,0.00016438,2]
[351249441,1738479034351,-500.0,0.00016438,2]
[351249442,1738479034361,-500.0,0.00016438,2]
[351249443,1738479034371,-500.0,0.00016438,2]
[351249444,1738479034380,-500.0,0.00016438,2]
[351249445,1738479034390,-500.0,0.00016438,2]
[351249446,1738479034399,-326.71428043,0.00016438,2]
[351249480,1738479038724,-173.28571957,0.00016438,2]
[351249482,1738479038734,-500.0,0.00016438,2]
[351249484,1738479038744,-500.0,0.00016438,2]
[351249486,1738479038753,-500.0,0.00016438,2]
[351249488,1738479038762,-500.0,0.00016438,2]
[351249490,1738479038772,-500.0,0.00016438,2]
[351249492,1738479038781,-500.0,0.00016438,2]
[351249494,1738479038792,-500.0,0.00016438,2]
[351249496,1738479038801,-500.0,0.00016438,2]
[351249498,1738479038810,-500.0,0.00016438,2]
[351249500,1738479038819,-4071.48,0.00016438,2]
[351249502,1738479038828,-500.0,0.00016438,2]
[351249504,1738479038838,-500.0,0.00016438,2]
[351249506,1738479038848,-500.0,0.00016438,2]
[351249508,1738479038857,-271.35081456,0.00016438,2]
[351249510,1738479038867,-500.0,0.00016438,2]
[351249512,1738479038878,-500.0,0.00016438,2]
[351249514,1738479038889,-500.0,0.00016438,2]
[351249516,1738479038899,-500.0,0.00016438,2]
[351249518,1738479038909,-500.0,0.00016438,2]
[351249520,1738479038919,-500.0,0.00016438,2]
[351249522,1738479038929,-617.65844435,0.00016438,2]
[351249524,1738479038939,-500.0,0.00016438,2]
[351249526,1738479038948,-500.0,0.00016438,2]
[351249528,1738479038958,-500.0,0.00016438,2]
[351249530,1738479038967,-909.89,0.00016438,2]
[351249532,1738479038976,-500.0,0.00016438,2]
[351249534,1738479038986,-292.28802544,0.00016438,2]
[351249536,1738479038995,-500.0,0.00016438,2]
[351249538,1738479039004,-500.0,0.00016438,2]
[351249540,1738479039013,-500.0,0.00016438,2]
[351249542,1738479039022,-500.0,0.00016438,2]
[351249544,1738479039032,-500.0,0.00016438,2]
[351249546,1738479039041,-509.3914945,0.00016438,2]
[351249548,1738479039051,-500.0,0.00016438,2]
[351249551,1738479039060,-500.0,0.00016438,2]
[351249553,1738479039069,-500.0,0.00016438,2]
[351249555,1738479039078,-500.0,0.00016438,2]
[351249557,1738479039087,-500.0,0.00016438,2]
[351249559,1738479039095,-500.0,0.00016438,2]
[351249561,1738479039104,-508.07603986,0.00016438,2]
[351249563,1738479039113,-500.0,0.00016438,2]
[351249565,1738479039122,-500.0,0.00016438,2]
[351249567,1738479039130,-500.0,0.00016438,2]
[351249569,1738479039140,-500.0,0.00016438,2]
[351249570,1738479039149,-500.0,0.00016438,2]
[351249573,1738479039158,-500.0,0.00016438,2]
[351249575,1738479039167,-500.0,0.00016438,2]
[351249587,1738479039270,-500.0,0.00016438,2]
[351249589,1738479039279,-500.0,0.00016438,2]
[351249591,1738479039288,-500.0,0.00016438,2]
[351249594,1738479039299,-500.0,0.00016438,2]
[351249596,1738479039308,-501.99943055,0.00016438,2]
[351249598,1738479039318,-500.0,0.00016438,2]
[351249600,1738479039327,-500.0,0.00016438,2]
[351249602,1738479039336,-500.0,0.00016438,2]
[351249604,1738479039345,-500.0,0.00016438,2]
[351249606,1738479039354,-500.0,0.00016438,2]
[351249608,1738479039364,-500.0,0.00016438,2]
[351249609,1738479039373,-500.0,0.00016438,2]
[351249611,1738479039382,-500.0,0.00016438,2]
[351249612,1738479039391,-500.0,0.00016438,2]
[351249614,1738479039400,-500.0,0.00016438,2]
[351249616,1738479039409,-500.0,0.00016438,2]
[351249618,1738479039418,-500.0,0.00016438,2]
[351249619,1738479039428,-500.0,0.00016438,2]
[351249620,1738479039437,-500.0,0.00016438,2]
[351249621,1738479039446,-500.0,0.00016438,2]
[351249622,1738479039455,-500.0,0.00016438,2]
[351249623,1738479039463,-500.0,0.00016438,2]
[351249624,1738479039472,-500.0,0.00016438,2]
[351249625,1738479039481,-500.0,0.00016438,2]
[351249626,1738479039492,-500.0,0.00016438,2]
[351249627,1738479039501,-500.0,0.00016438,2]
[351249628,1738479039510,-715.44,0.00016438,2]
[351249629,1738479039519,-2897.12,0.00016438,2]
[351249630,1738479039528,-500.0,0.00016438,2]
[351249631,1738479039538,-500.0,0.00016438,2]
[351249632,1738479039547,-500.0,0.00016438,2]
[351249633,1738479039555,-500.0,0.00016438,2]
[351249634,1738479039564,-1673.77,0.00016438,2]
[351249635,1738479039574,-500.0,0.00016438,2]
[351249636,1738479039583,-500.0,0.00016438,2]
[351249637,1738479039592,-500.0,0.00016438,2]
[351249638,1738479039601,-500.0,0.00016438,2]
[351249639,1738479039610,-500.0,0.00016438,2]
[351249640,1738479039619,-2324.84,0.00016438,2]
[351249641,1738479039628,-770.01,0.00016438,2]
[351249642,1738479039638,-500.0,0.00016438,2]
[351249643,1738479039647,-500.0,0.00016438,2]
[351249644,1738479039656,-508.69313508,0.00016438,2]
[351249645,1738479039665,-500.0,0.00016438,2]
[351249646,1738479039674,-500.0,0.00016438,2]
[351249647,1738479039683,-500.0,0.00016438,2]
[351249648,1738479039693,-500.0,0.00016438,2]
[351249649,1738479039702,-500.0,0.00016438,2]
[351249650,1738479039712,-500.0,0.00016438,2]
[351249651,1738479039721,-500.0,0.00016438,2]
[351249652,1738479039730,-810.49,0.00016438,2]
[351249653,1738479039740,-500.0,0.00016438,2]
[351249654,1738479039749,-500.0,0.00016438,2]
[351249655,1738479039759,-500.0,0.00016438,2]
[351249656,1738479039768,-500.0,0.00016438,2]
[351249657,1738479039778,-500.0,0.00016438,2]
[351249658,1738479039787,-500.0,0.00016438,2]
[351249659,1738479039797,-500.0,0.00016438,2]
[351249660,1738479039806,-702.73,0.00016438,2]
[351249661,1738479039816,-503.85214754,0.00016438,2]
[351249662,1738479039825,-500.0,0.00016438,2]
[351249663,1738479039834,-500.0,0.00016438,2]
[351249664,1738479039844,-500.0,0.00016438,2]
[351249665,1738479039853,-9424.74,0.00016438,2]
[351249666,1738479039864,-1290.56,0.00016438,2]
[351249667,1738479039874,-500.0,0.00016438,2]
[351249668,1738479039886,-500.0,0.00016438,2]
[351249669,1738479039896,-500.0,0.00016438,2]
[351249670,1738479039905,-503.46626793,0.00016438,2]
[351249671,1738479039915,-500.0,0.00016438,2]
[351249672,1738479039925,-500.0,0.00016574,2]
[351249673,1738479039935,-370.84640421,0.00016574,2]
[351249674,1738479039944,-500.0,0.00016575,2]
[351249675,1738479039955,-500.0,0.00016575,2]
[351249676,1738479039965,-500.0,0.00016575,2]
[351249677,1738479039975,-500.0,0.00016575,2]
[351249678,1738479039984,-500.0,0.00016575,2]
[351249679,1738479039994,-182.26280745,0.00016575,2]
[351249680,1738479040003,-500.0,0.00016575,2]
[351249681,1738479040013,-500.0,0.00016575,2]
[351249682,1738479040022,-500.0,0.00016575,2]
[351249683,1738479040031,-500.0,0.00016575,2]
[351249684,1738479040040,-517.28,0.00016575,2]
[351249685,1738479040050,-500.0,0.00016575,2]
[351249686,1738479040059,-500.0,0.00016575,2]
[351249687,1738479040068,-329.37,0.00016575,2]
[351249688,1738479040077,-505.44396854,0.00016575,2]
[351249689,1738479040087,-500.0,0.00016575,2]
[351249690,1738479040096,-500.0,0.00016575,2]
[351249691,1738479040105,-500.0,0.00016575,2]
[351249692,1738479040115,-500.0,0.00016575,2]
[351249693,1738479040125,-500.0,0.00016575,2]
[351249694,1738479040134,-500.07650369,0.00016575,2]
[351249695,1738479040144,-500.0,0.00016575,2]
[351249696,1738479040154,-500.0,0.00016575,2]
[351249697,1738479040164,-500.0,0.00016575,2]
[351249698,1738479040173,-500.0,0.00016575,2]
[351249699,1738479040184,-605.25127706,0.00016575,2]
[351249700,1738479040193,-500.0,0.00016575,2]
[351249701,1738479040202,-500.0,0.00016575,2]
[351249702,1738479040213,-500.0,0.00016575,2]
[351249703,1738479040222,-415.24173051,0.00016575,2]
[351249704,1738479040231,-500.0,0.00016575,2]
[351249705,1738479040240,-500.0,0.00016575,2]
[351249706,1738479040249,-500.0,0.00016575,2]
[351249707,1738479040258,-500.0,0.00016575,2]
[351249708,1738479040267,-500.0,0.00016575,2]
[351249709,1738479040277,-180.86597093,0.00016575,2]
[351249710,1738479040287,-292.75930428,0.00016575,2]
[351249711,1738479040296,-500.0,0.00016575,2]
[351249712,1738479040305,-637.54598833,0.00016575,2]